Cogmind - Beta 11.1 *** ADVENTURER MODE // 2022.08.16 @ 17:33:23 Player: darlorth Result: Destroyed by 8R-AWN with 8R-AWN's Boregun Performance ------------- Evolutions (0) 0 Regions Visited (3) 600 Robots Destroyed (3) 15 Value Destroyed (82) 82 Prototype IDs (0) 0 Alien Tech Used (0) 0 Bonus (-216) -216 TOTAL SCORE: 481 Bonus ------- Friendly Fire -216 Cogmind --------- Core Integrity 0/250 Matter 93/300 Energy 94/100 System Corruption 0% Temperature Cool (0) Movement Core (150) Ox2 Location -10/Exiles Parts ------- > --- POWER (1) -------- (None) > --- PROPULSION (2) --- (None) > --- UTILITY (2) ------ Small Storage Unit > --- WEAPON (2) ------- Light Assault Rifle Ripper > --- INVENTORY (8) ---- Sensor Array Signal Interpreter ECM Suite Assault Rifle Assault Rifle Grenade Launcher Peak State ------------ > --- POWER ------------ Ion Engine > --- PROPULSION ------- Light Treads Light Treads > --- UTILITY ---------- Small Storage Unit Light Armor Plating > --- WEAPON ----------- Assault Rifle Ripper > --- INVENTORY -------- Light Ion Engine Sensor Array Signal Interpreter ECM Suite Assault Rifle Light Assault Rifle Grenade Launcher Hammer [Rating: 10] Favorites ----------- Power Ion Engine Engine Ion Engine Propulsion Light Treads Treads Light Treads Utility Small Storage Unit Storage Small Storage Unit Protection Light Armor Plating Weapon Assault Rifle Ballistic Gun Assault Rifle Launcher Grenade Launcher Impact Weapon Hammer Slashing Weapon Ripper Build | -11 -10 -10 -10 ------- Run | Scr Mat Min Exi Slots Evolved . | . . . . Power . | . . . . Propulsion . | . . . . Utility . | . . . . Weapon . | . . . . Parts Attached 18 | 6 1 2 9 Power 2 | 1 . . 1 Engine 2 | 1 . . 1 Core . | . . . . Reactor . | . . . . Propulsion 2 | 2 . . . Treads 2 | 2 . . . Leg . | . . . . Wheel . | . . . . Hover . | . . . . Flight . | . . . . Utility 2 | 1 1 . . Device . | . . . . Storage 1 | 1 . . . Processor . | . . . . Hackware . | . . . . Protection 1 | . 1 . . Artifact . | . . . . Weapon 12 | 2 . 2 8 Energy Gun . | . . . . Energy Cannon . | . . . . Ballistic Gun 6 | 2 . 1 3 Ballistic Cannon . | . . . . Launcher 2 | . . 1 1 Special Weapon . | . . . . Impact Weapon 2 | . . . 2 Slashing Weapon 2 | . . . 2 Piercing Weapon . | . . . . Special Melee Weapon . | . . . . Unidentified Prototypes . | . . . . Parts Lost 6 | . . . 6 Power 2 | . . . 2 Propulsion 2 | . . . 2 Utility 1 | . . . 1 Weapon 1 | . . . 1 Highest Loss Streak 4 | . . . 4 To Critical Strikes 4 | . . . 4 Average Slot Usage (%) 96 | . 97 100 94 Engine 14 | . 14 14 14 Treads 27 | . 28 28 26 Storage 14 | . 14 14 14 Protection 11 | . 12 14 9 Ballistic Gun 23 | . 28 27 18 Impact Weapon 1 | . . . 3 Slashing Weapon 2 | . . . 4 Naked Turns . | . . . . Heaviest Build 18 | 13 16 16 18 Greatest Support 40 | 40 40 40 40 Greatest Overweight (x) 3 | . . . 3 Average Overweight (x) . | . . . . Largest Inventory Capacity 8 | 8 8 8 8 Average Capacity 7 | 6 8 8 8 Most Carried 8 | 4 7 8 8 Average Carried 6 | 1 5 7 7 Final Capacity 8 | 8 8 8 8 Final Carried 8 | 2 7 8 6 Class Distribution -------------------- 100% | Mutant Dominant Class ---------------- Mutant | -10/Materials Mutant | -10/Mines Mutant | -10/Exiles Resources | -11 -10 -10 -10 ----------- Run | Scr Mat Min Exi Matter Collected 225 | 182 . 29 14 Remotely . | . . . . Salvage Created 102 | . . 43 59 Parts 4 | . . 1 3 Haulers Intercepted . | . . . . Recyclers Shooed . | . . . . Parts Field Recycled . | . . . . Retrieved Matter . | . . . . Parts Self-Destructed . | . . . . Prevented . | . . . . Kills | -11 -10 -10 -10 ------- Run | Scr Mat Min Exi Combat Hostiles Destroyed 9 | . . 2 7 Guns 2 | . . 1 1 AOE 7 | . . 1 6 Classes Destroyed 2 | . . 1 1 Grunt 2 | . . 2 . Assembled 7 | . . . 7 Best Kill Streak 8 | . . 2 8 Combat Bots Only 7 | . . 2 7 Max Kills in Single Turn 4 | . . 1 4 Gunslinging . | . . . . Exploded 4 | . . 1 4 Melee . | . . . . Uniques/NPCs Destroyed 1 | . . . 1 EX-BIN (-10/Exiles) Combat | -11 -10 -10 -10 -------- Run | Scr Mat Min Exi Damage Taken 975 | . . 122 853 Core 250 | . . 22 228 Absorbed by Shields . | . . . . Core Remaining (%) 100 | 100 . . . Volleys Fired 21 | . . 8 13 Largest 2 | . . 2 2 Hottest 40 | . . 40 40 Shots Fired 28 | . . 13 15 Gun 23 | . . 10 13 Cannon . | . . . . Launcher 5 | . . 3 2 Special . | . . . . Kinetic 23 | . . 10 13 Thermal . | . . . . Explosive 5 | . . 3 2 Electromagnetic . | . . . . Robot Hit Streak 13 | . . 13 12 Robot Miss Streak 1 | . . . 1 Penetration Max . | . . . . Secondary Targets . | . . . . Shots Hit Robots 57 | . . 13 44 Core Hits 26 | . . 6 20 Critical Kills . | . . . . Critical Parts Destroyed . | . . . . Critical Strikes . | . . . . Melee Attacks 34 | . . . 34 Impact 9 | . . . 9 Slashing 25 | . . . 25 Piercing . | . . . . Sneak Attacks 1 | . . . 1 Combat Hostiles . | . . . . Follow-up Attacks 6 | . . . 6 Damage Inflicted 1773 | . . 288 1485 Guns 211 | . . 98 113 Cannons . | . . . . Explosions 446 | . . 175 271 Melee 1101 | . . . 1101 Ramming 15 | . . 15 . Kinetic 211 | . . 98 113 Thermal . | . . . . Explosive 446 | . . 175 271 Electromagnetic . | . . . . Impact 244 | . . . 244 Slashing 857 | . . . 857 Piercing . | . . . . Highest Corruption . | . . . . Average Corruption . | . . . . Corruption Purged . | . . . . Corruption Blocked . | . . . . Overload Shots . | . . . . Overflow Damage 71 | . . . 71 Projectiles . | . . . . Explosions . | . . . . Melee 71 | . . . 71 Knockbacks 2 | . . . 2 Impact 2 | . . . 2 Kinetic . | . . . . Secondary . | . . . . Self-Inflicted Damage . | . . . . Shots . | . . . . Rammed 3 | . . 3 . Targets Rammed 3 | . . 3 . Kicked . | . . . . Crushed . | . . . . Highest Temperature 30 | . . 30 12 Average Temperature 10 | . . 11 7 Received Heat Transfer 93 | . . 93 . Siege Activations . | . . . . Robots Corrupted . | . . . . Combat Hostiles . | . . . . Parts Fried 5 | . . . 5 Impact Corruptions 8 | . . . 8 Robots Melted . | . . . . Combat Hostiles . | . . . . Parts Melted . | . . . . Heat Transferred . | . . . . Parts Sabotaged . | . . . . Parts Stolen . | . . . . Parts Stripped . | . . . . Power Chain Reactions . | . . . . Missiles Intercepted . | . . . . Alert | -11 -10 -10 -10 ------- Run | Scr Mat Min Exi Peak Influence 83 | . . 83 . Initial . | . . . . Average 24 | . . 77 . Maximum Alert Level . | . . . . Low Security (%) 100 | 100 100 100 . Level 1 . | . . . . Level 2 . | . . . . Level 3 . | . . . . Level 4 . | . . . . Level 5 . | . . . . High Security . | . . . . Max Security . | . . . . Squads Dispatched . | . . . . Investigation . | . . . . Extermination . | . . . . Reinforcement . | . . . . Assault . | . . . . Garrison . | . . . . Intercept . | . . . . Searches Triggered . | . . . . Construction Impeded . | . . . . Haulers Reinforced . | . . . . Active Scanning Responses . | . . . . Cargo Convoy Interrupts . | . . . . Stealth | -11 -10 -10 -10 --------- Run | Scr Mat Min Exi Distress Signals . | . . . . Communications Jammed . | . . . . Distress Signals . | . . . . Times Spotted 10 | . . 2 8 Peak Tracking Total 9 | . . 2 9 Tactical Retreats . | . . . . Traps | -11 -10 -10 -10 ------- Run | Scr Mat Min Exi Traps Triggered . | . . . . Indirectly . | . . . . Trap Hack Attempts . | . . . . Triggered . | . . . . Disarmed . | . . . . Reprogrammed . | . . . . Reused . | . . . . Traps Extracted . | . . . . Installed . | . . . . Triggered . | . . . . Machines | -11 -10 -10 -10 ---------- Run | Scr Mat Min Exi Machines Disabled 3 | . . . 3 Max in Single Turn 1 | . . . 1 Machines Sabotaged . | . . . . Garrisons Compromised . | . . . . Overloaded Fab Kills . | . . . . Hacking | -11 -10 -10 -10 --------- Run | Scr Mat Min Exi Machines Accessed . | . . . . Terminals . | . . . . Fabricators . | . . . . Repair Stations . | . . . . Recycling Units . | . . . . Scanalyzers . | . . . . Garrison Access . | . . . . Total Hacks . | . . . . Successful . | . . . . Failed . | . . . . Catastrophic . | . . . . Database Lockouts . | . . . . Manual . | . . . . Terminals . | . . . . Fabricators . | . . . . Repair Stations . | . . . . Recycling Units . | . . . . Scanalyzers . | . . . . Garrison Access . | . . . . Terminal Hacks . | . . . . Fabricator Hacks . | . . . . Repair Station Hacks . | . . . . Recycling Unit Hacks . | . . . . Scanalyzer . | . . . . Garrison Access Hacks . | . . . . Unauthorized Hacks . | . . . . Terminals . | . . . . Fabricators . | . . . . Repair Stations . | . . . . Recycling Units . | . . . . Scanalyzers . | . . . . Garrison Access . | . . . . Data Cores Recovered . | . . . . Used . | . . . . Hacking Detections . | . . . . Full Trace Events . | . . . . Feedback Events . | . . . . Feedback Blocked . | . . . . Robot Schematics Acquired . | . . . . Robots Built . | . . . . Authchips . | . . . . Time . | . . . . Total Robot Build Rating . | . . . . Part Schematics Acquired . | . . . . Parts Built . | . . . . Authchips . | . . . . Time . | . . . . Total Part Build Rating . | . . . . Parts Repaired . | . . . . Time . | . . . . Parts Recycled . | . . . . Recycled Matter . | . . . . Retrieved Matter . | . . . . Retrieved Components . | . . . . Parts Scanalyzed . | . . . . Part Schematics Acquired . | . . . . Parts Damaged . | . . . . Bothacking | -11 -10 -10 -10 ------------ Run | Scr Mat Min Exi Used RIF Installer . | . . . . Robots Hacked . | . . . . Non-combat . | . . . . Combat . | . . . . Robot Hacks Applied . | . . . . Relay Couplers Released . | . . . . Fabnet Peak Effective % . | . . . . Robots Rewired . | . . . . Allies Hacked . | . . . . Hacks Repelled . | . . . . Allies | -11 -10 -10 -10 -------- Run | Scr Mat Min Exi Total Allies . | . . . . Largest Group . | . . . . Highest-Rated Group . | . . . . Highest-Rated Ally . | . . . . Total Orders . | . . . . Ally Attacks . | . . . . Total Damage . | . . . . Kills . | . . . . Allies Corrupted . | . . . . Allies Melted . | . . . . Intel | -11 -10 -10 -10 ------- Run | Scr Mat Min Exi Robot Analysis Total . | . . . . Derelict Logs Recovered . | . . . . Drone Launches . | . . . . Drone Recoveries . | . . . . Exploration | -11 -10 -10 -10 ------------- Run | Scr Mat Min Exi Turns Passed 824 | 75 278 164 307 Spaces Moved 421 | 42 170 85 124 Core 6 | 5 . . 1 Treads 415 | 37 170 85 123 Legs . | . . . . Wheels . | . . . . Hover . | . . . . Flight . | . . . . Fastest Speed 50 | 50 160 160 160 Average Speed 158 | 146 160 160 160 Slowest Speed 200 | 160 160 160 200 Overloaded Moves . | . . . . Propulsion Burnouts . | . . . . Robots Hopped . | . . . . Cave-ins Triggered . | . . . . Exploration Rate (%) 23 | 4 35 22 34 Regions Visited 3 Branch Regions 2 Pre-discovered Areas . | . . . . Known Exits Taken . | . . . . Unknown Exits Taken 3 | 1 1 1 . Scrap Searched . | . . . . Spaces Dug . | . . . . Terrain Destroyed 30 | . . 21 9 Melee . | . . . . Projectile . | . . . . AOE 30 | . . 21 9 Terrain Rammed . | . . . . Walls Destroyed . | . . . . Machines Disabled . | . . . . Actions | -11 -10 -10 -10 --------- Run | Scr Mat Min Exi Total 502 | 55 176 98 173 Wait . | . . . . Move 418 | 41 169 84 124 Hop . | . . . . Pick Up 15 | 8 6 1 . Fast Attach . | . . . . Attach 9 | 6 1 . 2 Detach . | . . . . Swap 9 | . . 2 7 Drop . | . . . . Fire 21 | . . 8 13 Melee 27 | . . . 27 Ram . | . . . . Kick . | . . . . Crush 3 | . . 3 . Escape Stasis . | . . . . Rewire . | . . . . Trap . | . . . . Miscellaneous . | . . . . Route ------- -11/Scrapyard -10/Materials -10/Mines -10/Exiles History --------- Turn | Location | Event 15 | -11/Scrapyard | Discovered new exit (range 15) 76 | -11/Scrapyard | Entered Materials 303 | -10/Materials | Build established: Mutant 343 | -10/Materials | Discovered new exit (range 6) 354 | -10/Materials | Entered Mines 379 | -10/Mines | Met a Derelict bent on vengeance 437 | -10/Mines | A weapon hastily lodged in a ceiling crevice suddenly fell to the ground 510 | -10/Mines | Deemed a non-threat by the Exiles lab entrance 511 | -10/Mines | Discovered new exit (range 5) 518 | -10/Mines | Entered Exiles 557 | -10/Exiles | Met 8R-AWN 594 | -10/Exiles | Met EX-HEX 670 | -10/Exiles | Met EX-BIN 687 | -10/Exiles | Attacked by the Exiles 696 | -10/Exiles | Destroyed EX-BIN 729 | -10/Exiles | Destroyed 7 combat bots 778 | -10/Exiles | Core integrity fell below 50% 816 | -10/Exiles | Core integrity fell below 20% 825 | -10/Exiles | Destroyed by 8R-AWN with 8R-AWN's Boregun Last Messages --------------- 00786_ Penetrated by HV Slug. 00790_ HV Slug penetrates Wall. 00790_ Penetrated by HV Slug. 00798_ 8R-AWN knocked back. 00798_ Penetrated by HV Slug. 00798_ HV Slug penetrates Machine. 00803_ Penetrated by HV Slug. 00803_ Critical hit (Destroy). 00803_ Lgt. Treads destroyed. 00805_ Ripper follow-up attack on 8R-AWN. 00807_ Penetrated by HV Slug. 00807_ Critical hit (Destroy). 00807_ Hammer destroyed. 00811_ Penetrated by HV Slug. 00811_ Critical hit (Destroy). 00811_ Lgt. Treads destroyed. 00811_ Penetrated by HV Slug. 00821_ Critical hit (Destroy). 00821_ Lgt. Ion Engine destroyed. 00825_ Penetrated by HV Slug. Map ----- +----------------------------------------------------+ | ????????????????????# ??#"""""""#????????????? | | ????????????????????# ??#"""""""#????????????? | | ???????????????????## ###"" """"#????????????? | | ???????????????????#" """"#????????????? | | ???????????????????#" """#????????????? | | ???????????????????#" """#????????????? | | ???????????????????#" ""#????????????? | | ???????????????????# """#????????????? | | ???????????????????# """##???????????? | | ???????????????????# """""???????????? | | ???????????????????## """##???????????? | | ??????????????????? "X" """"????????????? | | ???????????????????# """ #????????????? | | ???????????????????## """"""""#????????????? | | ?????????????????### * #########????????????? | | ?????????????????#;# " #????????????????????? | | ??????????????#?##; ##????????????????????? | | ??????????????""""" ##?????????????????????? | | ??????????????"" " " ##???###########??????? | | ?????????????""" " #####"""""""""##?????? | | ???????????" " " """ """"##????? | | ?????????? "" " #????? | | ?????????? " """#????? | | ?????????? " "#????? | | ?????????? " "##???? | | ?????????? @ ""###?? | | ?????????? """""" g """#?? | | ??????????? ######""" "#?? | | ???????????? ""#?????#####""" ##? | | ??????????????????????????##""" ## | | ???????????????????????????#"""" # | | ???????????????????????????#"" | | ????????????????????????????""" | | ???????????????????????????? | | ??????????????????????????? | | ??????????????????????????? | | ?????????????????????????? # | | ?????????????????????????? " ## | | ???????????????????????????? """ ""#? | | ??????????????????????????????" " ""#" "##? | | ????????????????????????????????" ""?##"""""""##?? | | ??????????????????????????????????????#########??? | | ?????????????????????????????????????????????????? | | ?????????????????????????????????????????????????? | | ?????????????????????????????????????????????????? | | ?????????????????????????????????????????????????? | | ?????????????????????????????????????????????????? | | ?????????????????????????????????????????????????? | | ?????????????????????????????????????????????????? | | ?????????????????????????????????????????????????? | +----------------------------------------------------+ Best States ------------- Heat Dissipation 25 Energy Generation 10 Energy Capacity 250 Matter Stores 222 Matter Capacity 300 Sight Range 16 Terrain Scan Density 10 Armor Coverage 150 Resistance: KI 20 Resistance: TH 20 Resistance: EX 20 Resistance: EM 20 Resistance: I 20 Resistance: S 20 Resistance: P 20 Evasion (%) 40 Recoil Reduction 2 Offensive Hacking 10 Item Schematics ----------------- None Robot Schematics ------------------ None Fabricated ------------ Nothing Alien Tech Used ----------------- None Achievements -------------- None Challenges ------------ None Game ------ Seed SlugFieldBooster Manual? 0 Play Time 00:07:28 Cumulative 203.8 hours Start 2022.08.16 @ 17:26:27 End 2022.08.16 @ 17:33:23 Sessions 1 Manual Loads 0 Difficulty Adventurer Special Mode None Game No. 231 Rogue 110 Adventurer 72 Explorer 49 Win Type - Total 8 Types 7/0/1/0/0/0/0/0/0 Lore% 31 Gallery% 64 Achievement% 55 Wizard Run 0 Options --------- ASCII 0 Keyboard 0 Movement Mouse Keybinds 0 Fullscreen 1 Font 12/Smallcaps Map View 83x54 Tactical HUD 1 Map Filters NONE Filters NONE Steam 1 RUN: 23a6938a-dfcd-4deb-8571-849a31dd636d